bitfinex/quotes_BTCUSD_20250714
["timestamp","ask_amount","ask_price","bid_price","bid_amount"]
[1752477004594,0.24845717,122280.0,122270.0,0.38460993]
[1752477005002,0.24845717,122280.0,122270.0,0.70630318]
[1752477005878,0.24845717,122280.0,122270.0,0.38460993]
[1752477006054,0.24845717,122280.0,122270.0,0.70630318]
[1752477006283,0.24537717,122280.0,122270.0,0.70630318]
[1752477007335,0.24537717,122280.0,122270.0,0.38460993]
[1752477007514,0.24537717,122280.0,122270.0,0.70630318]
[1752477007866,0.23719902,122280.0,122270.0,0.70630318]
[1752477008071,0.04254978,122280.0,122270.0,1.2213939]
[1752477008295,0.04254978,122280.0,122270.0,0.89970065]
[1752477008495,0.05072733,122280.0,122270.0,0.89970065]
[1752477008698,0.04254978,122280.0,122270.0,0.89970065]
[1752477008901,0.05072739,122280.0,122270.0,0.89970065]
[1752477009096,0.04254978,122280.0,122270.0,0.89970065]
[1752477009659,0.03437237,122280.0,122270.0,0.89970065]
[1752477009875,0.04254972,122280.0,122270.0,0.89970065]
[1752477010110,0.05890481,122280.0,122270.0,0.89970065]
[1752477010311,0.0507272,122280.0,122270.0,0.89970065]
[1752477010513,0.05890481,122280.0,122270.0,0.89970071]
[1752477011174,0.22246385,122280.0,122270.0,0.89970071]
[1752477011402,0.2306416,122280.0,122270.0,0.88334415]
[1752477011600,0.25455472,122280.0,122270.0,0.38989993]
[1752477011803,0.25455472,122280.0,122270.0,0.71159318]
[1752477011980,0.25455472,122280.0,122270.0,0.39807848]
[1752477012211,0.25430472,122280.0,122270.0,0.71159318]
[1752477012396,0.25430472,122280.0,122270.0,0.72795035]
[1752477012523,0.25430472,122280.0,122270.0,0.70946318]
[1752477012759,0.25430472,122280.0,122270.0,0.72582035]
[1752477012961,0.25430472,122280.0,122270.0,0.74217725]
[1752477013467,0.25430465,122280.0,122270.0,0.91392802]
[1752477013681,0.24612643,122280.0,122270.0,0.90787967]
[1752477013915,0.21403643,122280.0,122270.0,0.91605761]
[1752477014330,0.22221418,122280.0,122270.0,0.89970085]
[1752477015169,0.22221418,122280.0,122270.0,0.90787913]
[1752477015575,0.23039206,122280.0,122270.0,0.88334408]
[1752477015990,0.23039206,122280.0,122270.0,0.8915225]
[1752477016209,0.22221418,122280.0,122270.0,0.89152243]
[1752477016422,0.23039206,122280.0,122270.0,0.8915225]
[1752477016855,0.23039206,122280.0,122270.0,0.88334408]
[1752477017058,0.03412237,122280.0,122270.0,0.89970058]
[1752477019362,0.00415237,122280.0,122270.0,0.93040058]
[1752477019702,0.00415237,122280.0,122270.0,1.27040058]
[1752477019898,0.00415237,122280.0,122270.0,1.62229383]
[1752477020321,0.00415237,122280.0,122270.0,1.64680683]
[1752477020941,0.00415237,122280.0,122270.0,1.66134768]
[1752477021144,0.0004,122300.0,122290.0,0.5779767]
[1752477021353,0.0004,122300.0,122290.0,1.29745988]
[1752477021560,0.0004,122300.0,122290.0,1.30060988]
[1752477021762,0.0004,122300.0,122290.0,1.32512088]
[1752477028034,0.0004,122300.0,122290.0,1.32612088]
[1752477029270,0.0004,122300.0,122290.0,0.97422763]
[1752477029503,0.0004,122300.0,122290.0,1.29592088]
[1752477029696,0.0004,122300.0,122290.0,1.49192088]
[1752477030501,0.0004,122320.0,122310.0,0.57794593]
[1752477030708,0.00055231,122320.0,122310.0,1.05290911]
[1752477030912,0.00055231,122320.0,122310.0,0.66856586]
[1752477031132,0.06234231,122320.0,122310.0,0.32337586]
[1752477031284,0.07051712,122320.0,122310.0,0.32337586]
[1752477031667,0.07051705,122320.0,122310.0,0.44789586]
[1752477031841,0.07051698,122320.0,122310.0,0.44789586]
[1752477032058,0.06234231,122320.0,122310.0,0.44789586]
[1752477032261,0.06234231,122320.0,122310.0,0.32337586]
[1752477032404,0.06334231,122320.0,122310.0,0.44789586]
[1752477032597,0.06334231,122320.0,122310.0,0.20994993]
[1752477032598,0.58124113,122320.0,122310.0,0.20994993]
[1752477032802,0.57330639,122320.0,122310.0,0.25984993]
[1752477033042,0.57330639,122320.0,122310.0,0.0499]
[1752477033043,0.56513145,122320.0,122310.0,0.0499]
[1752477034583,0.56513105,122320.0,122310.0,0.22977073]
[1752477034781,0.24319747,122320.0,122310.0,0.2379464]
[1752477035008,0.25137221,122320.0,122310.0,0.2379464]
[1752477035221,0.26772236,122320.0,122310.0,0.22977073]
[1752477035417,0.25954722,122320.0,122310.0,0.23794647]
[1752477035594,0.26772229,122320.0,122310.0,0.23794647]
[1752477036194,0.25954762,122320.0,122310.0,0.24612214]
[1752477036394,0.25954762,122320.0,122310.0,0.23794647]
[1752477036595,0.25137255,122320.0,122310.0,0.24612214]
[1752477036820,0.25137255,122320.0,122310.0,0.2379462]
[1752477037038,0.25954769,122320.0,122310.0,0.22977053]
[1752477037547,0.25954769,122320.0,122310.0,0.22159479]
[1752477037702,0.26772296,122320.0,122310.0,0.2297706]
[1752477037903,0.25954769,122320.0,122310.0,0.2297706]
[1752477038117,0.25954769,122320.0,122310.0,0.23794634]
[1752477038598,0.2677229,122320.0,122310.0,0.23794634]
[1752477038716,0.25954816,122320.0,122310.0,0.05807594]
[1752477039067,0.25137295,122320.0,122310.0,0.35429067]
[1752477039288,0.25137295,122320.0,122310.0,0.36246641]
[1752477039472,0.25137295,122320.0,122310.0,0.18259594]
[1752477039701,0.25954816,122320.0,122310.0,0.35429067]
[1752477039852,0.25137295,122320.0,122310.0,0.35429067]
[1752477040468,0.25137295,122320.0,122310.0,0.36246641]
[1752477040919,0.2350226,122320.0,122310.0,0.37881749]
[1752477041121,0.24319754,122320.0,122310.0,0.37881756]
[1752477041292,0.24319754,122320.0,122310.0,0.36246641]
[1752477041517,0.25137261,122320.0,122310.0,0.37064202]
[1752477041735,0.24319754,122320.0,122310.0,0.37064202]
[1752477041946,0.24319754,122320.0,122310.0,0.37881756]
[1752477042140,0.24319754,122320.0,122310.0,0.36246608]
[1752477042508,0.25137261,122320.0,122310.0,0.36246608]
[1752477042739,0.25137261,122320.0,122310.0,0.36246614]
[1752477043289,0.25137261,122320.0,122310.0,0.35429047]
[1752477043465,0.25954782,122320.0,122310.0,0.34611473]
[1752477043688,0.26772309,122320.0,122310.0,0.33793892]
[1752477043809,0.25954835,122320.0,122310.0,0.18259587]
[1752477044443,0.25954835,122320.0,122310.0,0.05807587]
[1752477044663,0.25954835,122320.0,122310.0,0.18259594]
[1752477044908,0.5812416,122320.0,122310.0,0.19077181]
[1752477045252,0.25954835,122320.0,122310.0,0.19894762]
[1752477045459,0.25954835,122320.0,122310.0,0.19077181]
[1752477045963,0.25954835,122320.0,122310.0,0.18259594]
[1752477046166,0.25137341,122320.0,122310.0,0.17442]
[1752477046390,0.57306666,122320.0,122310.0,0.17442]
[1752477046614,0.25137341,122320.0,122310.0,0.17442]
[1752477046837,0.25137341,122320.0,122310.0,0.18259594]
[1752477047074,0.25137341,122320.0,122310.0,0.17442]
[1752477047303,0.2431978,122320.0,122310.0,0.3542906]
[1752477047517,0.25137301,122320.0,122310.0,0.34611486]
[1752477047738,0.25137301,122320.0,122310.0,0.36246647]
[1752477048007,0.25137301,122320.0,122310.0,0.34611486]
[1752477048226,0.25137301,122320.0,122310.0,0.35429073]
[1752477048663,0.25137301,122320.0,122310.0,0.37064228]
[1752477048844,0.25137301,122320.0,122310.0,0.35429073]
[1752477049084,0.25137301,122320.0,122310.0,0.19077181]
[1752477049308,0.25137301,122320.0,122310.0,0.18259594]
[1752477049519,0.25954828,122320.0,122310.0,0.18259594]
[1752477050146,0.25954828,122320.0,122310.0,0.19077181]
[1752477050364,0.58124153,122320.0,122310.0,0.17442]
[1752477050608,0.58124153,122320.0,122310.0,0.19077181]
[1752477050826,0.25954828,122320.0,122310.0,0.17442]
[1752477051041,0.0642,122300.0,122290.0,0.17491188]
[1752477051263,0.25265079,122300.0,122290.0,0.31841882]
[1752477051493,0.26082713,122300.0,122290.0,0.31841882]
[1752477051703,0.26900361,122300.0,122290.0,0.26303993]
[1752477051948,0.26082713,122300.0,122290.0,0.44792684]
[1752477052163,0.26082793,122300.0,122290.0,0.31523009]
[1752477052379,0.25265132,122300.0,122290.0,0.43157288]
[1752477052593,0.25265132,122300.0,122290.0,0.43975002]
[1752477052851,0.26082793,122300.0,122290.0,0.43975002]
[1752477053076,0.24447491,122300.0,122290.0,0.33158398]
[1752477053296,0.24447491,122300.0,122290.0,0.45610398]
[1752477053547,0.24447491,122300.0,122270.0,0.14685836]
[1752477053548,0.71081869,122300.0,122270.0,0.14685836]
[1752477053763,0.25828475,122260.0,122250.0,0.19091587]
[1752477053991,0.033,122240.0,122230.0,0.43451233]
[1752477054219,0.033,122240.0,122230.0,1.00662558]
[1752477054445,0.033,122240.0,122230.0,0.67994164]
[1752477054675,0.22154309,122240.0,122230.0,0.67797178]
[1752477054904,0.22154309,122240.0,122230.0,0.43980855]
[1752477055101,0.26292358,122240.0,122230.0,0.43177996]
[1752477055355,0.25474309,122240.0,122230.0,0.44814201]
[1752477055590,0.26292358,122240.0,122230.0,0.43177996]
[1752477055826,0.25474309,122240.0,122230.0,0.44814207]
[1752477056081,0.25474309,122240.0,122230.0,0.45632303]
[1752477056297,0.26292351,122240.0,122230.0,0.43996105]
[1752477057035,0.26292351,122240.0,122230.0,0.44814207]
[1752477057273,0.25474309,122240.0,122230.0,0.44814207]
[1752477057528,0.25474309,122240.0,122230.0,0.45632303]
[1752477057761,0.2465628,122240.0,122230.0,0.4481418]
[1752477057994,0.25474316,122240.0,122230.0,0.4481418]
[1752477058237,0.25474316,122240.0,122230.0,0.43996084]
[1752477058480,0.27899355,122240.0,122230.0,0.76983505]
[1752477058748,0.28717411,122240.0,122230.0,0.42359873]
[1752477058995,0.59274712,122240.0,122230.0,0.24346148]
[1752477059245,0.19638164,122210.0,122200.0,0.0113733]
[1752477059424,0.0081821,122210.0,122200.0,0.39634245]
[1752477059714,0.04108143,122220.0,122210.0,0.18819981]
[1752477059930,0.22147395,122220.0,122210.0,0.18001758]
[1752477060154,0.04147143,122220.0,122210.0,0.18320758]
[1752477060393,0.04965299,122220.0,122210.0,0.18320758]
[1752477060627,0.0304,122230.0,122220.0,0.18818441]
[1752477060853,0.21038753,122230.0,122220.0,0.50366617]
[1752477061094,0.03858069,122230.0,122220.0,0.64071766]
[1752477061305,0.27838652,122240.0,122220.0,0.64071712]
[1752477061520,0.28356687,122240.0,122230.0,0.50168165]
[1752477061737,0.09580338,122240.0,122230.0,0.50168165]
[1752477061964,0.08116382,122240.0,122230.0,0.6469135]
[1752477062214,0.25295674,122240.0,122230.0,0.63877267]
[1752477062414,0.2922373,122240.0,122230.0,0.1799884]
[1752477062625,0.00818069,122230.0,122220.0,0.50488563]
[1752477062831,0.01636151,122230.0,122220.0,0.58410427]
[1752477063047,0.18855848,122230.0,122220.0,0.08861993]
[1752477063290,0.18000251,122220.0,122210.0,0.34319]
[1752477063505,0.47208427,122220.0,122210.0,0.43680249]
[1752477063725,0.47208427,122220.0,122210.0,0.92214846]
[1752477063943,0.4802661,122220.0,122210.0,0.94048339]
[1752477064180,0.18001698,122210.0,122200.0,0.01636633]
[1752477064402,0.22708171,122210.0,122200.0,0.08542993]
[1752477064626,0.18822493,122200.0,122180.0,0.54070132]
[1752477064836,0.43962467,122200.0,122190.0,0.00197]
[1752477065061,0.43962467,122200.0,122190.0,0.00516]
[1752477065272,0.43962453,122200.0,122190.0,0.4987166]
[1752477065484,0.43962453,122200.0,122190.0,0.32685325]
[1752477065712,0.4478077,122200.0,122190.0,0.34322099]
[1752477065908,0.4478077,122200.0,122190.0,0.34372947]
[1752477066048,0.4314415,122200.0,122190.0,0.52377632]
[1752477066275,0.4396246,122200.0,122190.0,0.52377645]
[1752477066709,0.4396246,122200.0,122190.0,0.51559275]
[1752477066869,0.4314415,122200.0,122190.0,0.53196009]
[1752477067075,0.43962453,122200.0,122190.0,0.53296009]
[1752477067273,0.43962453,122200.0,122190.0,0.52377645]
[1752477067591,0.43962453,122200.0,122190.0,0.53196009]
[1752477067800,0.44980776,122200.0,122190.0,0.49922514]
[1752477068041,0.22191453,122200.0,122190.0,0.51559281]
[1752477068272,0.2133415,122200.0,122190.0,0.52377638]
[1752477068491,0.2225246,122200.0,122190.0,0.51559281]
[1752477068718,0.2225246,122200.0,122190.0,0.64119281]
[1752477069191,0.2143415,122200.0,122190.0,0.64937638]
[1752477069429,0.2310979,122200.0,122190.0,0.00050841]
[1752477069686,0.255615,122200.0,122190.0,0.00050841]
[1752477069981,0.24743203,122200.0,122190.0,0.00050841]
[1752477070398,0.56936528,122200.0,122190.0,0.00050841]
[1752477071277,0.21306159,122180.0,122170.0,0.00319]
[1752477071519,0.17189129,122170.0,122160.0,0.98689312]
[1752477071773,0.46426159,122180.0,122170.0,0.17189162]
[1752477072022,0.46426119,122180.0,122170.0,0.19841702]
[1752477072245,0.47244563,122180.0,122170.0,0.52330027]
[1752477072486,0.47244563,122180.0,122170.0,0.52330033]
[1752477072715,0.45602294,122190.0,122180.0,0.17187755]
[1752477072938,0.48096418,122190.0,122180.0,0.18006199]
[1752477073157,0.48096418,122190.0,122180.0,0.16369291]
[1752477073389,0.48057399,122190.0,122180.0,0.49054616]
[1752477073635,0.48096453,122190.0,122180.0,0.32685325]
[1752477073864,0.48096453,122190.0,122180.0,0.32488325]
[1752477074079,0.48096453,122190.0,122180.0,0.33306776]
[1752477074293,0.48096453,122190.0,122180.0,0.01137457]
[1752477074726,0.48296453,122190.0,122180.0,0.01955908]
[1752477074963,0.48296453,122190.0,122180.0,0.01137464]
[1752477075183,0.47478056,122190.0,122180.0,0.01955921]
[1752477075400,0.48296446,122190.0,122180.0,0.01137464]
[1752477075580,0.48296446,122190.0,122180.0,0.18325206]
[1752477075817,0.48296446,122190.0,122180.0,0.18325212]
[1752477076024,0.48296446,122190.0,122180.0,0.19143663]
[1752477076465,0.48296446,122190.0,122180.0,0.01137464]
[1752477076889,0.46659672,122190.0,122180.0,0.18325206]
[1752477077056,0.47478056,122190.0,122180.0,0.19962087]
[1752477077384,0.47478056,122190.0,122180.0,0.1914365]
[1752477077572,0.25296,122190.0,122180.0,0.2015906]
[1752477077820,0.002,122190.0,122180.0,0.64876385]
[1752477078021,0.19023014,122190.0,122180.0,0.51509968]
[1752477078146,0.19841371,122190.0,122180.0,0.32707067]
[1752477078347,0.19023001,122190.0,122180.0,0.53146809]
[1752477078544,0.19023001,122190.0,122180.0,0.64876392]
[1752477078753,0.19841371,122190.0,122180.0,0.64876392]
[1752477078965,0.0265505,122190.0,122180.0,0.65694809]
[1752477079650,0.02655057,122190.0,122180.0,0.53146809]
[1752477079857,0.19841392,122190.0,122180.0,0.4987308]
[1752477080057,0.23949789,122190.0,122180.0,0.1306]
[1752477080266,0.23949789,122190.0,122180.0,0.13878451]
[1752477080490,0.23131385,122190.0,122180.0,0.31066186]
[1752477080690,0.23949782,122190.0,122180.0,0.30247742]
[1752477080866,0.23131385,122190.0,122180.0,0.31066186]
[1752477081062,0.23131385,122190.0,122180.0,0.31884623]
[1752477081325,0.23949775,122190.0,122180.0,0.31066186]
[1752477081524,0.23131432,122190.0,122180.0,0.30247748]
[1752477081739,0.23131432,122190.0,122180.0,0.31066199]
[1752477081883,0.23131426,122190.0,122180.0,0.3270308]
[1752477082278,0.23131426,122190.0,122180.0,0.31884643]
[1752477082521,0.23131426,122190.0,122180.0,0.19340643]
[1752477082702,0.22313042,122190.0,122180.0,0.32699074]
[1752477082908,0.19023042,122190.0,122180.0,0.32699074]
[1752477083465,0.19841439,122190.0,122180.0,0.31062199]
[1752477083662,0.19841439,122190.0,122180.0,0.31062192]
[1752477083938,0.21563725,122190.0,122180.0,0.00516]
[1752477084096,0.21563725,122190.0,122180.0,0.13052]
[1752477084510,0.21563725,122190.0,122180.0,0.13870464]
[1752477084937,0.21563725,122190.0,122180.0,0.00516]
[1752477085091,0.18824596,122180.0,122170.0,0.18328659]
[1752477085300,0.18006139,122180.0,122170.0,0.18529659]
[1752477085507,0.18824549,122180.0,122170.0,0.32702661]
[1752477085710,0.18824549,122180.0,122170.0,0.32702668]
[1752477085907,0.19642993,122180.0,122170.0,0.32702668]
[1752477086107,0.19642993,122180.0,122170.0,0.3188417]
[1752477086347,0.18824549,122180.0,122170.0,0.32702668]
[1752477086547,0.18924549,122180.0,122170.0,0.33521159]
[1752477086749,0.19842993,122180.0,122170.0,0.20985159]
[1752477086998,0.19842993,122180.0,122170.0,0.32698668]
[1752477087490,0.19024549,122180.0,122170.0,0.6568647]
[1752477087690,0.01836827,122180.0,122170.0,0.6568647]
[1752477087894,0.02655264,122180.0,122170.0,0.64867986]
[1752477088071,0.19024555,122180.0,122170.0,0.64867993]
[1752477088281,0.19024555,122180.0,122170.0,0.51517495]
[1752477088446,0.19843006,122180.0,122170.0,0.64045495]
[1752477088643,0.19843006,122180.0,122170.0,0.63226991]
[1752477088854,0.19024555,122180.0,122170.0,0.64045495]
[1752477089055,0.19024549,122180.0,122170.0,0.64863979]
[1752477089272,0.19024549,122180.0,122170.0,0.64863986]
[1752477089496,0.19024542,122180.0,122170.0,0.6568247]
[1752477089707,0.19842986,122180.0,122170.0,0.64863993]
[1752477089910,0.19063616,122180.0,122170.0,0.00522]
[1752477090134,0.22313563,122180.0,122170.0,0.3105766]
[1752477090315,0.22313563,122180.0,122170.0,0.31876164]
[1752477090615,0.22313563,122180.0,122170.0,0.32694662]
[1752477091030,0.22313563,122180.0,122170.0,0.31876164]
[1752477091230,0.2313202,122180.0,122170.0,0.3105766]
[1752477091427,0.22313563,122180.0,122170.0,0.31876164]
[1752477091848,0.22313563,122180.0,122170.0,0.32694662]
[1752477092063,0.2313202,122180.0,122170.0,0.19348164]
[1752477092267,0.22313563,122180.0,122170.0,0.30235149]
[1752477092468,0.22313563,122180.0,122170.0,0.00522]
[1752477092699,0.22313563,122180.0,122170.0,0.13864524]
[1752477092909,0.23132014,122180.0,122170.0,0.13042]
[1752477093064,0.22313556,122180.0,122170.0,0.13860518]
[1752477093266,0.23132007,122180.0,122170.0,0.13860524]
[1752477093668,0.23132007,122180.0,122170.0,0.13860531]
[1752477093882,0.23132007,122180.0,122170.0,0.14679055]
[1752477094077,0.23132007,122180.0,122170.0,0.13042]
[1752477094303,0.22313556,122180.0,122170.0,0.13042]
[1752477094525,0.23132007,122180.0,122170.0,0.13860524]
[1752477094680,0.25555802,122180.0,122170.0,0.13042]
[1752477094888,0.23919001,122180.0,122170.0,0.13038]
[1752477095395,0.27009001,122180.0,122170.0,0.12516]
[1752477095797,0.27009001,122180.0,122170.0,0.12837]
[1752477096462,0.24737432,122180.0,122170.0,0.12837]
[1752477096681,0.24737432,122180.0,122170.0,0.00321]
[1752477096937,0.22313637,122180.0,122170.0,0.13034]
[1752477097844,0.24795027,122180.0,122170.0,0.13034]
[1752477098273,0.27845027,122180.0,122170.0,0.13034]
[1752477098681,0.24795027,122180.0,122170.0,0.13034]
[1752477098860,0.27925027,122180.0,122170.0,0.13034]
[1752477099062,0.19580631,122170.0,122160.0,0.58239115]
[1752477099255,0.19580631,122170.0,122160.0,0.71766686]
[1752477099408,0.16370631,122170.0,122160.0,0.72585251]
[1752477099608,0.16370631,122170.0,122160.0,0.75715251]
[1752477099849,0.16370631,122170.0,122160.0,0.76533809]
[1752477100249,0.22214576,122180.0,122160.0,0.64844353]
[1752477100441,0.22214576,122180.0,122170.0,0.44673325]
[1752477100719,0.21396132,122180.0,122170.0,0.45195325]
[1752477100925,0.22214569,122180.0,122170.0,0.45195325]
[1752477101131,0.1974302,122180.0,122170.0,0.45195325]
[1752477101328,0.18824569,122180.0,122170.0,0.45195325]
[1752477101557,0.18006132,122180.0,122170.0,0.46013856]
[1752477101769,0.18006132,122180.0,122170.0,0.45195325]
[1752477102020,0.18824576,122180.0,122170.0,0.45195325]
[1752477102207,0.17287701,122180.0,122170.0,0.33509856]
[1752477102421,0.17287708,122180.0,122170.0,0.67211516]
[1752477102646,0.18106139,122180.0,122170.0,0.48381325]
[1752477103209,0.17387708,122180.0,122170.0,0.03712]
[1752477103413,0.18206145,122180.0,122170.0,0.48381325]
[1752477103613,0.18206145,122180.0,122170.0,0.45191325]
[1752477104974,0.18206139,122180.0,122170.0,0.46009856]
[1752477105173,0.17387708,122180.0,122170.0,0.4682838]
[1752477105395,0.18206139,122180.0,122170.0,0.45191325]
[1752477105575,0.19024583,122180.0,122170.0,0.45191325]
[1752477105799,0.17387708,122180.0,122170.0,0.46009856]
[1752477105978,0.17387708,122180.0,122170.0,0.4682838]
[1752477106183,0.19024576,122180.0,122170.0,0.32691325]
[1752477106363,0.19843033,122180.0,122170.0,0.00522]
[1752477106563,0.19024576,122180.0,122170.0,0.45187325]
[1752477106796,0.18206132,122180.0,122170.0,0.46005849]
[1752477106971,0.18206132,122180.0,122170.0,0.45187325]
[1752477107170,0.19024569,122180.0,122170.0,0.46005856]
[1752477107493,0.18206132,122180.0,122170.0,0.4682438]
[1752477107689,0.19024576,122180.0,122170.0,0.45187325]
[1752477108021,0.19024569,122180.0,122170.0,0.45187325]
[1752477109991,0.18206132,122180.0,122170.0,0.45187325]
[1752477110202,0.18206132,122180.0,122170.0,0.46005856]
[1752477110411,0.19024576,122180.0,122170.0,0.45187325]
[1752477110615,0.18206132,122180.0,122170.0,0.46005856]
[1752477110837,0.18206132,122180.0,122170.0,0.45187325]
[1752477111038,0.19024569,122180.0,122170.0,0.45187325]
[1752477111470,0.18206132,122180.0,122170.0,0.45187325]
[1752477111682,0.18206132,122180.0,122170.0,0.46005856]
[1752477112104,0.19024569,122180.0,122170.0,0.45187325]
[1752477113674,0.18206132,122180.0,122170.0,0.46005849]
[1752477113893,0.19024563,122180.0,122170.0,0.46005849]
[1752477114109,0.19024563,122180.0,122170.0,0.46005856]
[1752477114626,0.19843007,122180.0,122170.0,0.32691325]
[1752477114826,0.19843007,122180.0,122170.0,0.45989856]
[1752477115246,0.19024563,122180.0,122170.0,0.4680838]
[1752477115437,0.17387708,122180.0,122170.0,0.31828204]
[1752477115698,0.17387708,122180.0,122170.0,0.63997529]
[1752477115858,0.17387708,122180.0,122170.0,0.6809604]
[1752477116054,0.002,122180.0,122170.0,0.68970497]
[1752477116745,0.16569291,122180.0,122170.0,0.68970478]
[1752477117216,0.16569291,122180.0,122170.0,0.68970444]
[1752477117421,0.002,122180.0,122170.0,0.68970444]
[1752477118249,0.17387708,122180.0,122170.0,0.66514971]
[1752477118461,0.002,122180.0,122170.0,0.79136448]
[1752477121350,0.002,122180.0,122170.0,0.46967123]
[1752477121557,0.002,122180.0,122170.0,0.79136448]
[1752477128499,0.002,122180.0,122170.0,0.75876448]
[1752477135016,0.002,122180.0,122170.0,0.43707123]
[1752477135217,0.002,122180.0,122170.0,0.75876448]
[1752477139765,0.002,122180.0,122170.0,0.43707123]
[1752477139955,0.002,122180.0,122170.0,0.75876448]
[1752477140658,0.002,122180.0,122170.0,0.72596448]
[1752477144090,0.002,122180.0,122170.0,0.75846448]
[1752477145132,0.002,122180.0,122170.0,0.67768048]
[1752477148503,0.002,122180.0,122170.0,0.91858973]
[1752477151607,0.002,122180.0,122170.0,0.67768048]
[1752477155611,0.002,122180.0,122170.0,0.91858973]
[1752477155876,0.002,122180.0,122170.0,1.53179898]
[1752477156157,0.002,122180.0,122170.0,1.29088973]
[1752477156610,0.001,122180.0,122170.0,1.29088973]
[1752477156839,0.001,122180.0,122170.0,1.78678068]
[1752477157068,0.0329,122220.0,122210.0,0.1881998]
[1752477157320,0.19688728,122250.0,122220.0,0.22108441]
[1752477157551,0.0329,122250.0,122240.0,0.50096962]
[1752477157780,0.03339,122250.0,122240.0,0.58639955]
[1752477158014,0.03339,122250.0,122240.0,0.58934955]
[1752477158254,0.0329,122250.0,122240.0,0.59134955]
[1752477158521,0.00105076,122250.0,122240.0,0.59134955]
[1752477158741,0.00105076,122250.0,122240.0,0.270353]
[1752477158934,0.00105076,122250.0,122240.0,0.84142955]
[1752477159211,0.00105076,122250.0,122240.0,0.520433]
[1752477159450,0.06384076,122250.0,122240.0,0.518433]
[1752477160111,0.04162011,122250.0,122240.0,0.518433]
[1752477160315,0.03344076,122250.0,122240.0,0.518433]
[1752477160743,0.03244076,122250.0,122240.0,0.84142955]
[1752477160959,0.0327,122240.0,122230.0,0.49573093]
[1752477161171,0.0327,122240.0,122230.0,0.72464284]
[1752477162018,0.00818076,122230.0,122220.0,0.2073319]
[1752477162231,0.07985172,122230.0,122220.0,0.47275999]
[1752477162455,0.07985172,122230.0,122220.0,0.59787999]
[1752477162456,0.07167076,122230.0,122220.0,0.59787999]
[1752477162661,0.07167082,122230.0,122220.0,0.59787999]
[1752477162867,0.07985178,122230.0,122220.0,0.59787999]
[1752477163105,0.06349,122230.0,122220.0,0.59787999]
[1752477163310,0.07167076,122230.0,122220.0,0.47275999]
[1752477163522,0.03229,122230.0,122220.0,0.91887654]
[1752477163732,0.03229,122230.0,122220.0,0.92087654]
[1752477163942,0.04047076,122230.0,122220.0,0.92087654]
[1752477164143,0.04865165,122230.0,122220.0,0.92087654]
[1752477164350,0.03229,122230.0,122220.0,0.92087654]
[1752477164553,0.04047069,122230.0,122220.0,0.92087654]
[1752477164950,0.03229,122230.0,122220.0,0.92087654]
[1752477165824,0.03229,122230.0,122220.0,0.92287654]
[1752477166045,0.03229,122230.0,122220.0,0.79875654]
[1752477166258,0.03229,122230.0,122220.0,0.92379654]
[1752477166706,0.04047076,122230.0,122220.0,0.92379654]
[1752477166925,0.04047069,122230.0,122220.0,0.92379654]
[1752477167157,0.04047069,122230.0,122220.0,0.46139681]
[1752477167372,0.04047069,122230.0,122220.0,0.38738006]
[1752477167373,0.08723227,122230.0,122220.0,0.38738006]
[1752477167582,0.48723227,122230.0,122220.0,0.83839661]
[1752477168091,0.49541316,122230.0,122220.0,0.83839661]
[1752477168470,0.49541323,122230.0,122220.0,0.83839661]
[1752477168707,0.48723227,122230.0,122220.0,0.83839661]
[1752477169382,0.45683227,122230.0,122220.0,0.83839661]
[1752477169789,0.4,122230.0,122220.0,0.92378654]
[1752477170327,0.4,122230.0,122220.0,0.79882654]
[1752477170516,0.4,122230.0,122220.0,0.92382654]
[1752477170717,0.4,122230.0,122220.0,0.95472654]
[1752477170890,0.03105076,122250.0,122240.0,0.18815363]
[1752477171090,0.03105076,122250.0,122240.0,0.76118018]
[1752477171308,0.40005076,122250.0,122240.0,1.17076666]
[1752477171513,0.40005076,122250.0,122240.0,0.55967356]
[1752477171714,0.40005076,122250.0,122240.0,1.20166666]
[1752477172308,0.40105076,122250.0,122240.0,1.20166666]
[1752477172708,0.00105076,122250.0,122240.0,1.20166666]
[1752477174944,0.00105076,122250.0,122240.0,0.88067011]
[1752477175168,0.00105076,122250.0,122240.0,0.84977011]
[1752477175617,0.00205076,122250.0,122240.0,0.84977011]
[1752477178981,0.00205076,122250.0,122240.0,1.17076666]
[1752477179645,0.00205076,122250.0,122240.0,0.84977011]
[1752477180431,0.00205076,122250.0,122240.0,1.17076666]
[1752477180677,0.00205076,122250.0,122240.0,1.20186666]
[1752477181149,0.00205076,122250.0,122240.0,0.88087011]
[1752477181564,0.00205076,122250.0,122240.0,1.20186666]
[1752477183723,0.00105076,122250.0,122240.0,1.20186666]
[1752477184115,0.00105076,122250.0,122240.0,1.54186666]
[1752477184337,0.00105076,122250.0,122240.0,1.57456666]
[1752477184556,0.00029362,122250.0,122240.0,1.57456666]
[1752477184997,0.4,122260.0,122250.0,0.21993825]
[1752477185229,0.4,122260.0,122250.0,0.88155473]
[1752477185916,0.03150806,122270.0,122260.0,0.18812286]
[1752477186132,0.03968607,122270.0,122260.0,0.76110941]
[1752477186351,0.03968607,122270.0,122260.0,0.76426941]
[1752477186586,0.43150806,122270.0,122260.0,0.76426941]
[1752477187020,0.43968614,122270.0,122260.0,0.76426941]
[1752477187248,0.44886435,122270.0,122260.0,0.76426941]
[1752477187479,0.44068614,122270.0,122260.0,0.76426941]
[1752477187698,0.44886429,122270.0,122260.0,0.76426941]
[1752477187940,0.48125429,122270.0,122260.0,0.76426941]
[1752477188207,0.0622,122250.0,122220.0,0.1715125]
[1752477188438,0.24267767,122230.0,122220.0,0.1469905]
[1752477188666,0.24267767,122230.0,122210.0,0.50101305]
[1752477188667,0.19393933,122220.0,122210.0,0.50101305]
[1752477188905,0.19393933,122220.0,122210.0,0.59462528]
[1752477189162,0.19393933,122220.0,122210.0,0.60280751]
[1752477189387,0.20212069,122220.0,122210.0,0.72900751]
[1752477189606,0.19393933,122220.0,122210.0,0.72900751]
[1752477189817,0.0313,122220.0,122210.0,0.73724043]
[1752477190029,0.0313,122220.0,122210.0,0.61104043]
[1752477190235,0.0313,122220.0,122210.0,0.41624388]
[1752477190500,0.0313,122220.0,122210.0,0.73724043]
[1752477191553,0.001,122220.0,122210.0,0.73724043]
[1752477192239,0.001,122220.0,122210.0,0.73728043]
[1752477193098,0.001,122220.0,122210.0,0.41628388]
[1752477193316,0.001,122220.0,122210.0,0.73728043]
[1752477195596,0.001,122220.0,122210.0,0.41628388]
[1752477195803,0.001,122220.0,122210.0,0.73728043]
[1752477198461,0.001,122220.0,122210.0,0.41628388]
[1752477198717,0.001,122220.0,122210.0,0.73728043]
[1752477199027,0.17282076,122220.0,122210.0,0.72885827]
[1752477199196,0.20302076,122220.0,122210.0,0.73704043]
[1752477199362,0.20302076,122220.0,122210.0,0.72885827]
[1752477199565,0.0312,122220.0,122210.0,0.73704043]
[1752477201374,0.0312,122220.0,122210.0,0.41604388]
[1752477201585,0.19483933,122220.0,122210.0,0.58649374]